bitfinex/quotes_ETHUSD_20250505
["timestamp","ask_amount","ask_price","bid_price","bid_amount"]
[1746474490304,5.48715875,1822.5,1822.3,4.582]
[1746474490471,5.48726953,1822.4,1822.2,4.582]
[1746474490879,11.03624554,1822.5,1822.2,4.582]
[1746474491198,7.02934733,1822.5,1822.2,4.582]
[1746474491405,7.02934733,1822.5,1822.2,10.06984275]
[1746474491722,6.96734235,1822.5,1822.2,10.06984275]
[1746474492021,7.02934733,1822.5,1822.2,4.582]
[1746474493403,12.51656228,1822.5,1822.2,4.582]
[1746474493709,6.96734235,1822.5,1822.2,4.582]
[1746474493871,7.02934733,1822.5,1822.2,4.582]
[1746474494305,5.4874369,1822.4,1822.2,4.582]
[1746474494673,0.7824,1822.3,1822.1,18.148]
[1746474494872,6.2700809,1822.3,1822.1,22.73]
[1746474495304,6.33208588,1822.3,1822.1,22.73]
[1746474495604,8.48743632,1822.4,1822.1,28.21815516]
[1746474495810,3.0,1822.6,1822.3,3.15404007]
[1746474496105,4.44500755,1822.6,1822.3,8.64149063]
[1746474496315,9.99380301,1822.6,1822.2,6.25019555]
[1746474496985,9.99380301,1822.6,1822.2,6.30506827]
[1746474497182,8.54879546,1822.6,1822.3,5.48753373]
[1746474497387,8.54879546,1822.6,1822.2,9.40423562]
[1746474497791,8.54879546,1822.6,1822.2,14.89190173]
[1746474498422,8.54879546,1822.6,1822.2,9.40419595]
[1746474498723,8.54868367,1822.6,1822.2,9.45906435]
[1746474499022,8.54868367,1822.6,1822.3,5.48746946]
[1746474499225,8.54868367,1822.6,1822.2,9.40419122]
[1746474499428,8.54868367,1822.6,1822.2,14.94674228]
[1746474499592,8.54868367,1822.6,1822.2,14.89186915]
[1746474499793,8.54868367,1822.6,1822.3,5.48745443]
[1746474502226,3.06200498,1822.6,1822.3,5.48745443]
[1746474502523,8.54875305,1822.6,1822.3,5.48745443]
[1746474504041,3.06200498,1822.6,1822.3,5.48745443]
[1746474504199,8.54867329,1822.6,1822.3,5.48745443]
[1746474505148,3.06200498,1822.6,1822.3,5.48740257]
[1746474505448,8.54868608,1822.6,1822.3,5.48740257]
[1746474506147,3.06200498,1822.6,1822.3,5.48740257]
[1746474506443,3.0,1822.6,1822.5,5.48696844]
[1746474506651,3.0,1822.6,1822.5,10.06396844]
[1746474506947,10.24,1822.7,1822.5,10.06396844]
[1746474509244,10.24,1822.7,1822.5,4.577]
[1746474509738,10.24,1822.7,1822.5,10.06390938]
[1746474510736,10.24,1822.7,1822.5,4.577]
[1746474511438,10.24,1822.7,1822.5,10.06394895]
[1746474511605,10.24,1822.8,1822.5,10.06394895]
[1746474511807,5.54809994,1822.8,1822.5,10.06394895]
[1746474513546,3.0,1822.8,1822.6,5.48657418]
[1746474514043,10.24,1822.9,1822.7,5.48626654]
[1746474514247,0.7659,1823.0,1822.8,5.48606539]
[1746474514423,5.48520569,1823.1,1822.8,8.64010546]
[1746474514614,0.00732949,1823.0,1822.8,5.48588288]
[1746474514949,0.00732949,1823.0,1822.9,5.48576444]
[1746474515340,0.00732949,1823.0,1822.9,10.06276444]
[1746474515848,0.00732949,1823.0,1822.9,4.577]
[1746474517216,0.00732949,1823.0,1822.9,14.02535746]
[1746474517422,0.00732949,1823.0,1822.9,13.97050451]
[1746474518463,0.00732949,1823.0,1822.9,10.81646444]
[1746474518758,0.00732949,1823.0,1822.9,4.576]
[1746474519736,0.00732949,1823.0,1822.9,10.06176444]
[1746474521572,0.00732949,1823.0,1822.9,4.576]
[1746474522139,0.00732949,1823.0,1822.9,10.06176444]
[1746474522658,0.00732949,1823.0,1822.9,4.576]
[1746474523573,0.00732949,1823.0,1822.9,10.06176444]
[1746474527166,0.00732949,1823.0,1822.9,4.576]
[1746474528582,0.00732949,1823.0,1822.9,10.06176444]
[1746474528766,0.00732949,1823.0,1822.9,4.576]
[1746474531089,6.18513994,1823.0,1822.6,5.48644216]
[1746474531251,6.18513994,1823.0,1822.7,10.06136283]
[1746474531786,6.12316192,1823.0,1822.7,10.06136283]
[1746474532084,0.63767144,1823.0,1822.7,10.06115018]
[1746474532882,0.63767144,1823.0,1822.7,15.5473276]
[1746474533286,0.63767144,1823.0,1822.8,5.48605558]
[1746474534584,0.63767144,1823.0,1822.7,10.06115018]
[1746474534962,6.12317392,1823.0,1822.7,10.06115018]
[1746474535374,0.63767144,1823.0,1822.7,15.54736163]
[1746474535679,0.63767144,1823.0,1822.7,10.06115018]
[1746474535995,6.12315552,1823.0,1822.7,10.06115018]
[1746474536303,0.63767144,1823.0,1822.7,15.54735805]
[1746474536876,0.63767144,1823.0,1822.7,10.06115018]
[1746474537261,0.63767144,1823.0,1822.7,15.54731815]
[1746474537673,0.63767144,1823.0,1822.9,5.48576444]
[1746474537885,0.00732949,1823.0,1822.9,5.48576444]
[1746474538504,0.00732949,1823.0,1822.9,5.5406173]
[1746474538670,0.00732949,1823.0,1822.9,6.3441173]
[1746474539698,0.00732949,1823.0,1822.9,6.28926444]
[1746474543323,0.00732949,1823.0,1822.9,6.34410774]
[1746474543616,0.00732949,1823.0,1822.9,6.28926444]
[1746474544898,0.00732949,1823.0,1822.9,5.48576444]
[1746474545097,0.00732949,1823.0,1822.9,5.54086444]
[1746474545329,0.00732949,1823.0,1822.9,5.59571407]
[1746474546338,0.00732949,1823.0,1822.9,0.10994963]
[1746474546549,0.00732949,1823.0,1822.9,10.11586444]
[1746474547053,0.00732949,1823.0,1822.9,10.17071529]
[1746474548044,0.00732949,1823.0,1822.9,10.93401529]
[1746474548342,0.00732949,1823.0,1822.9,14.08805536]
[1746474548547,0.00732949,1823.0,1822.9,14.03320451]
[1746474550036,0.00732949,1823.0,1822.9,10.87916444]
[1746474551814,0.00732949,1823.0,1822.9,10.93400935]
[1746474552756,0.00732949,1823.0,1822.9,10.87916444]
[1746474552911,0.00732949,1823.0,1822.9,10.11586444]
[1746474553415,0.80372949,1823.0,1822.9,10.11586444]
[1746474553615,0.00732949,1823.0,1822.9,10.11586444]
[1746474555212,0.00732949,1823.0,1822.9,4.6301]
[1746474556012,0.00732949,1823.0,1822.9,10.11586444]
[1746474556918,0.00732949,1823.0,1822.9,4.6301]
[1746474558529,6.34328381,1823.2,1822.9,4.6301]
[1746474558722,7.82608416,1823.2,1822.9,4.6301]
[1746474560646,7.82608416,1823.2,1822.9,10.11582495]
[1746474560857,2.34120533,1823.2,1822.9,10.11582495]
[1746474561152,7.82625527,1823.2,1822.9,4.6301]
[1746474562255,13.31135166,1823.2,1822.9,4.6301]
[1746474562556,13.24934668,1823.2,1822.9,4.6301]
[1746474562755,5.48516277,1823.1,1822.9,4.6301]
[1746474562926,13.24937189,1823.2,1822.9,4.6301]
[1746474563251,13.24934489,1823.2,1823.0,4.575]
[1746474563850,7.76425029,1823.2,1823.0,4.575]
[1746474564052,8.48516263,1823.1,1822.9,0.0551]
[1746474564243,6.3148685,1823.0,1822.9,4.6301]
[1746474564438,6.3148685,1823.0,1822.9,0.0551]
[1746474564763,9.3148685,1823.0,1822.9,0.0551]
[1746474564956,5.48606108,1822.9,1822.7,4.575]
[1746474565260,0.93154661,1822.9,1822.7,4.575]
[1746474565564,9.25304318,1823.0,1822.7,15.54747679]
[1746474565565,3.7674,1823.0,1822.7,15.54747679]
[1746474565943,3.7674,1823.0,1822.7,10.06119877]
[1746474566657,3.0,1823.0,1822.8,5.48603132]
[1746474567673,3.0,1823.0,1822.7,15.54742998]
[1746474567958,8.48527306,1823.1,1822.7,10.06119061]
[1746474568134,7.14849065,1823.0,1822.7,10.06119061]
[1746474568561,1.66292731,1823.0,1822.7,10.06119061]
[1746474568935,6.29988212,1823.0,1822.7,10.06119061]
[1746474569142,0.8144,1823.0,1822.7,10.06119061]
[1746474569870,0.8144,1823.0,1822.7,10.06115203]
[1746474570082,0.8144,1823.0,1822.7,15.54730033]
[1746474570276,0.8144,1823.0,1822.7,10.0611483]
[1746474572335,6.29993176,1823.0,1822.7,10.0611483]
[1746474573374,0.8144,1823.0,1822.7,10.0611483]
[1746474573748,6.2998842,1823.0,1822.7,10.0611483]
[1746474573943,0.8144,1823.0,1822.7,10.0611483]
[1746474574465,5.48604178,1822.9,1822.7,4.575]
[1746474574974,7.23001442,1823.0,1822.7,4.575]
[1746474575275,7.2920194,1823.0,1822.7,4.575]
[1746474575485,7.2920194,1823.0,1822.7,10.06134205]
[1746474575647,7.23001442,1823.0,1822.7,10.06134205]
[1746474577079,1.74436731,1823.0,1822.7,10.06134205]
[1746474577680,0.8144,1823.0,1822.7,10.0611588]
[1746474578048,0.8144,1823.0,1822.8,5.48599892]
[1746474578246,3.06200498,1823.1,1822.9,5.4856006]
[1746474578247,3.0,1823.1,1822.9,5.4856006]
[1746474578679,6.35363611,1823.2,1822.9,5.4856006]
[1746474579177,6.35363611,1823.2,1822.9,10.0606006]
[1746474580179,6.35363611,1823.2,1822.9,4.575]
[1746474580477,11.83874185,1823.2,1822.9,4.575]
[1746474580687,7.77550532,1823.2,1822.9,4.575]
[1746474580978,7.8375103,1823.2,1822.9,4.575]
[1746474581379,7.8375103,1823.2,1822.9,10.06073101]
[1746474581581,7.8375103,1823.2,1822.9,4.575]
[1746474581883,13.32260501,1823.2,1822.9,4.575]
[1746474582067,13.26060003,1823.2,1822.9,4.575]
[1746474582252,7.77550532,1823.2,1822.9,4.575]
[1746474582454,7.8375103,1823.2,1822.9,4.575]
[1746474582879,5.48526293,1823.1,1822.9,4.575]
[1746474583064,7.77550532,1823.2,1822.9,4.575]
[1746474583266,13.32259373,1823.2,1822.9,4.575]
[1746474583463,7.77550532,1823.2,1822.9,4.575]
[1746474583762,7.8375103,1823.2,1822.9,4.575]
[1746474584986,5.35247917,1823.2,1822.9,10.06059103]
[1746474585290,10.83750946,1823.2,1822.9,10.06060087]
[1746474585491,9.35363527,1823.2,1822.9,4.575]
[1746474585882,9.35363527,1823.2,1822.9,10.06072616]
[1746474586189,9.35363527,1823.2,1822.9,4.575]
[1746474586579,3.86860498,1823.2,1822.9,10.06048152]
[1746474587267,9.35348238,1823.2,1822.9,10.06048152]
[1746474587587,10.83730536,1823.2,1822.9,10.06048152]
[1746474587790,10.83730536,1823.2,1822.9,4.575]
[1746474590865,16.32239801,1823.2,1822.9,4.575]
[1746474591080,10.77530038,1823.2,1822.9,4.575]
[1746474591284,0.06200498,1823.1,1822.9,4.575]
[1746474591596,5.54720355,1823.1,1822.9,4.575]
[1746474591896,5.48519857,1823.1,1822.9,4.575]
[1746474593477,5.54720355,1823.1,1822.9,4.575]
[1746474595004,7.17945394,1823.1,1822.9,4.575]
[1746474595169,5.48546352,1823.0,1822.9,4.575]
[1746474595697,5.5474685,1823.0,1822.9,4.575]
[1746474596064,5.48546352,1823.0,1822.9,4.575]
[1746474596663,12.60286769,1823.1,1822.9,4.575]
[1746474596863,7.11744896,1823.1,1822.9,4.575]
[1746474597099,7.17945394,1823.1,1822.9,4.575]
[1746474597292,12.6648605,1823.1,1822.9,4.575]
[1746474597494,5.48546352,1823.0,1822.9,4.575]
[1746474597714,7.51754957,1823.0,1822.9,4.575]
[1746474598403,7.51754957,1823.0,1822.9,4.6301]
[1746474598894,4.63225039,1823.1,1822.9,4.6301]
[1746474599100,8.48518789,1823.1,1822.9,4.6301]
[1746474599394,8.54719287,1823.1,1822.9,4.6301]
[1746474599601,8.48517707,1823.1,1822.9,4.6301]
[1746474600003,8.54718205,1823.1,1822.9,4.6301]
[1746474600211,0.06200498,1823.1,1822.9,0.0551]
[1746474600420,10.24,1823.7,1823.1,0.7734]
[1746474600601,5.48362047,1823.7,1823.3,6.25783191]
[1746474600771,5.48362047,1823.7,1823.3,0.7734]
[1746474600973,5.48486178,1823.2,1823.0,0.8172]
[1746474601277,6.25947915,1823.3,1822.9,4.6291]
[1746474601487,0.06200498,1823.2,1822.9,4.6291]
[1746474601816,5.48487592,1823.2,1822.9,4.6291]
[1746474602015,6.25960276,1823.3,1822.9,10.11467004]
[1746474602186,6.32160774,1823.3,1822.9,10.11467004]
[1746474602814,0.83690498,1823.3,1823.0,5.4853313]
[1746474603180,0.83690498,1823.3,1822.9,10.11467004]
[1746474603501,7.25365065,1823.3,1822.9,10.11467004]
[1746474604322,7.25365065,1823.3,1822.9,4.6291]
[1746474604323,1.76903778,1823.3,1822.9,4.6291]
[1746474604503,5.48492269,1823.2,1822.9,4.6291]
[1746474604680,0.06200498,1823.1,1822.9,4.6291]
[1746474605714,3.06200498,1823.2,1822.9,10.11482911]
[1746474606380,3.0,1823.2,1823.0,5.48543455]
[1746474606585,11.0621,1823.5,1823.1,5.48493147]
[1746474606905,10.24,1823.5,1823.2,6.25875644]
[1746474607105,10.24,1823.5,1823.2,11.74342547]
[1746474607310,10.24,1823.5,1823.2,6.2589037]
[1746474607608,10.30200498,1823.5,1823.2,6.2589037]
[1746474608421,10.30200498,1823.5,1823.2,6.25875768]
[1746474608723,12.71118228,1823.5,1823.0,0.7771]
[1746474608890,5.48465269,1823.3,1822.9,15.60026434]
[1746474609078,0.06200498,1823.3,1823.0,5.48546048]
[1746474609278,3.06200498,1823.4,1823.1,5.48509574]
[1746474609478,3.06200498,1823.4,1823.0,5.54030919]
[1746474609689,8.54638926,1823.4,1823.0,5.48546048]
[1746474610315,8.54638926,1823.4,1823.0,10.97074098]
[1746474610522,3.0,1823.4,1823.1,6.26741927]
[1746474610719,10.24,1823.5,1823.3,5.48445729]
[1746474610875,10.24,1823.5,1823.3,10.05845729]
[1746474611222,3.0,1823.6,1823.3,10.05845729]
[1746474611427,3.06200498,1823.6,1823.3,10.05845729]
[1746474611779,8.54567833,1823.6,1823.3,4.574]
[1746474612019,3.0,1823.6,1823.3,10.05846114]
[1746474612617,0.82740498,1823.7,1823.3,10.05846114]
[1746474612783,3.0,1823.6,1823.3,4.574]
[1746474612982,8.48376746,1823.6,1823.3,10.05855683]
[1746474613422,3.0,1823.6,1823.3,10.05855683]
[1746474613585,3.06200498,1823.6,1823.3,10.05855683]
[1746474613920,8.48375626,1823.6,1823.3,10.05855683]
[1746474614292,8.48321781,1823.8,1823.4,6.30745364]
[1746474614607,8.48321781,1823.8,1823.4,6.30736584]
[1746474614807,8.54522279,1823.8,1823.4,6.30736584]
[1746474615187,5.48347814,1823.7,1823.4,6.30736584]
[1746474615585,5.54548312,1823.7,1823.4,6.30736584]
[1746474616216,0.06200498,1823.7,1823.4,11.7914619]
[1746474616428,14.02841675,1823.8,1823.4,6.30739524]
[1746474616597,5.4834307,1823.7,1823.4,0.8233]
[1746474616902,5.54543568,1823.7,1823.3,16.34904733]
[1746474617226,5.54543568,1823.7,1823.3,10.05833966]
[1746474617731,5.48396622,1823.5,1823.3,4.574]
[1746474617923,6.17111782,1823.5,1823.3,4.574]
[1746474618093,5.48426017,1823.4,1823.3,4.574]
[1746474618487,9.25176017,1823.4,1823.3,4.574]
[1746474619597,9.31376515,1823.4,1823.3,4.574]
[1746474628060,9.31376515,1823.4,1823.3,4.574]
[1746474630157,5.4845971,1823.3,1823.0,10.06245176]
[1746474630453,6.27057288,1823.1,1823.0,4.577]
[1746474630638,0.84730498,1823.1,1823.0,4.577]
[1746474630837,0.06200498,1823.1,1823.0,4.577]
[1746474631021,9.3322456,1823.2,1823.0,4.577]
[1746474631540,6.3322456,1823.2,1823.1,0.21271406]
[1746474631736,10.66192574,1823.2,1823.1,0.21271406]
[1746474633553,20.92182574,1823.2,1823.1,0.21271406]
[1746474633761,21.40982076,1823.2,1823.1,0.21271406]
[1746474634049,5.48625241,1822.8,1822.6,4.577]
[1746474634358,5.54825739,1822.8,1822.6,4.577]
[1746474634531,6.29111492,1822.9,1822.6,4.577]
[1746474634854,3.0,1823.1,1822.6,4.577]
[1746474634855,3.06200498,1823.0,1822.7,6.31689066]
[1746474635154,0.06200498,1823.0,1822.7,6.31689066]
[1746474636155,3.0,1822.9,1822.7,6.31689066]
[1746474636345,3.0,1822.9,1822.7,0.8307]
[1746474638860,8.48580295,1822.9,1822.7,0.8307]
[1746474641064,8.48577046,1822.9,1822.6,10.06361943]
[1746474641225,3.0,1822.9,1822.6,10.06361943]
[1746474641424,3.0,1822.9,1822.7,0.8095]
[1746474642163,3.0,1822.9,1822.7,6.29583862]
[1746474642558,3.0,1822.9,1822.7,6.29577435]
[1746474642769,3.0,1822.9,1822.7,6.29574218]
[1746474642959,3.0,1822.9,1822.7,6.29570113]
[1746474643164,3.0,1822.9,1822.7,6.39340113]
[1746474643331,3.0,1822.9,1822.7,0.9072]
[1746474643533,8.48585627,1822.9,1822.7,0.9072]
[1746474644663,8.48585627,1822.9,1822.8,0.17415381]
[1746474646465,8.48576444,1822.9,1822.8,0.17415381]
[1746474647967,8.54776942,1822.9,1822.8,0.17415381]
[1746474648265,8.48576444,1822.9,1822.8,0.17415381]
[1746474650070,3.0,1822.9,1822.8,0.17415381]
[1746474653477,16.48006847,1823.2,1822.8,5.65994305]
[1746474653674,6.24006847,1823.2,1822.8,5.65994305]
[1746474653885,6.30207345,1823.2,1822.8,5.65994305]
[1746474654281,5.48546352,1823.0,1822.8,0.17415381]
[1746474654466,5.48576444,1822.9,1822.8,0.17415381]
[1746474654654,5.48524436,1823.1,1822.8,0.17415381]
[1746474654860,11.89467439,1823.1,1822.8,0.17415381]
[1746474655359,11.89470252,1823.1,1822.8,0.17415381]
[1746474655881,6.4092688,1823.1,1822.8,5.66020339]
[1746474656079,5.54724934,1823.1,1822.8,0.17415381]
[1746474657283,5.54724934,1823.1,1822.8,5.6601873]
[1746474657583,5.54724934,1823.1,1822.8,10.23800567]
[1746474657584,3.0,1823.1,1822.8,10.23800567]
[1746474657752,3.06200498,1823.1,1822.8,10.23800567]
[1746474657953,8.54726912,1823.1,1822.8,4.75215381]
[1746474658355,10.02599169,1823.1,1822.8,4.75215381]
[1746474659287,10.02599169,1823.1,1822.8,10.23820018]
[1746474659581,10.02599169,1823.1,1822.8,4.75215381]
[1746474660253,5.48576444,1822.9,1822.8,4.75215381]
[1746474660464,0.06200498,1822.9,1822.8,4.75215381]
[1746474660662,5.54776942,1822.9,1822.8,4.75215381]
[1746474661150,5.48576444,1822.9,1822.8,4.75215381]
[1746474661354,6.28587756,1823.0,1822.8,4.75215381]
[1746474661573,6.28587756,1823.0,1822.8,5.53695381]
[1746474661574,0.06200498,1823.0,1822.8,5.53695381]
[1746474661774,5.48551974,1823.0,1822.8,5.53695381]
[1746474661957,5.48551974,1823.0,1822.8,4.75215381]
[1746474662377,5.48551974,1823.0,1822.8,0.17415381]
[1746474663184,5.48576444,1822.9,1822.8,0.17415381]
[1746474663485,9.28606444,1822.9,1822.8,0.17415381]
[1746474663885,5.48681723,1822.6,1822.4,4.579]
[1746474664187,5.54882221,1822.6,1822.5,0.13683385]
[1746474665883,8.54882221,1822.6,1822.5,0.13683385]
[1746474666066,10.03238213,1822.6,1822.5,0.13683385]
[1746474669983,9.97037715,1822.6,1822.5,0.13683385]
[1746474670593,10.03238213,1822.6,1822.5,0.13683385]
[1746474672075,4.48355992,1822.6,1822.5,0.13683385]
[1746474672265,3.0,1822.6,1822.5,0.13683385]
[1746474672807,5.48588851,1822.9,1822.5,0.13683385]
[1746474672982,3.0,1822.9,1822.7,0.8096]
[1746474673294,8.54795462,1822.9,1822.7,0.8096]
[1746474673593,8.54795462,1822.9,1822.8,0.13758426]
[1746474673992,0.06200498,1822.9,1822.8,0.13758426]
[1746474674504,5.54776942,1822.9,1822.8,0.13758426]
[1746474674700,0.06200498,1822.9,1822.8,0.13758426]
[1746474674864,8.54759316,1823.0,1822.8,0.13758426]
[1746474675064,14.03329899,1823.0,1822.8,0.13758426]
[1746474675292,5.48576444,1822.9,1822.8,0.13758426]
[1746474676504,13.97134667,1823.0,1822.8,0.13758426]
[1746474676681,5.54776942,1822.9,1822.8,0.13758426]
[1746474677971,3.7813,1823.2,1822.8,0.13758426]
[1746474678172,5.54730583,1823.1,1822.8,0.23528426]
[1746474679907,13.39404007,1823.3,1822.8,0.23528426]
[1746474679908,10.24,1823.3,1823.0,5.48526633]
[1746474680077,11.36224505,1824.3,1822.8,4.81428426]
[1746474680078,0.7739,1823.8,1823.1,9.45922429]
[1746474680277,5.48391555,1823.6,1823.2,10.06371892]
[1746474680504,3.0,1823.5,1823.2,10.06371892]
[1746474680682,3.0,1823.5,1823.3,0.13463915]
[1746474680888,8.48410462,1823.5,1823.3,0.13463915]
[1746474681390,11.02909152,1823.7,1823.4,0.8003]
[1746474681572,5.4836916,1823.6,1823.4,0.8003]
[1746474681777,5.4836916,1823.6,1823.5,0.13213692]
[1746474682080,9.72579381,1823.7,1823.5,0.13213692]
[1746474682293,5.48365869,1823.6,1823.5,0.13213692]
[1746474683187,5.54566367,1823.6,1823.5,0.13213692]
[1746474683397,5.48365869,1823.6,1823.5,0.13213692]
[1746474683708,5.54566367,1823.6,1823.5,0.13213692]
[1746474683900,7.06660892,1823.6,1823.5,0.13213692]
[1746474684216,3.0,1823.5,1823.3,0.8244]
[1746474684518,8.48408841,1823.5,1823.3,0.8244]
[1746474684812,8.48408841,1823.5,1823.2,5.4034]
[1746474684813,3.0,1823.5,1823.2,5.4034]
[1746474685009,5.54649781,1823.4,1823.2,4.579]
[1746474685611,5.48449283,1823.4,1823.2,4.579]
[1746474685814,9.28190544,1823.5,1823.2,4.579]
[1746474686001,10.82048445,1823.5,1823.2,4.579]
[1746474686392,5.48436467,1823.4,1823.2,4.579]
[1746474686593,10.75847947,1823.5,1823.2,4.579]
[1746474686794,10.82048445,1823.5,1823.2,4.579]
[1746474686990,16.30471808,1823.5,1823.2,4.579]
[1746474687222,16.24269763,1823.5,1823.2,4.579]
[1746474687940,10.75847947,1823.5,1823.2,4.579]
[1746474688213,5.48428317,1823.4,1823.2,4.579]
[1746474688585,5.48430149,1823.4,1823.2,4.579]
[1746474688786,7.17058457,1823.4,1823.2,4.578]
[1746474689008,12.65507876,1823.4,1823.2,4.578]
[1746474689211,7.10857959,1823.4,1823.2,4.578]
[1746474689429,7.17058457,1823.4,1823.2,4.578]
[1746474689592,7.17058457,1823.4,1823.3,0.1328729]
[1746474690046,6.28180382,1823.5,1823.3,0.1328729]
[1746474690184,8.48400382,1823.5,1823.3,0.1328729]
[1746474690392,5.5460088,1823.5,1823.3,0.1328729]
[1746474695421,5.48426017,1823.4,1823.3,0.1328729]
[1746474696334,12.40280024,1823.4,1823.3,0.1328729]
[1746474696535,5.48486178,1823.2,1823.1,4.582]
[1746474696734,6.24966263,1823.1,1823.0,4.582]
[1746474697036,5.48563275,1823.0,1822.8,4.582]
[1746474697338,5.54763773,1823.0,1822.8,4.582]
[1746474697636,0.06200498,1823.0,1822.8,4.582]
[1746474698717,0.7645,1823.1,1822.8,10.06796294]
[1746474698920,0.06200498,1823.1,1822.8,10.06796294]
[1746474699218,0.30512768,1823.0,1822.8,4.582]
[1746474699603,0.30512768,1823.0,1822.8,10.06790875]
[1746474699808,5.48521134,1823.1,1822.8,10.06790875]
[1746474700225,5.54721632,1823.1,1822.8,10.06790875]
[1746474701040,5.48549462,1823.0,1822.8,4.582]
[1746474701239,5.54721632,1823.1,1822.8,4.582]
[1746474701441,5.48546758,1823.0,1822.8,4.582]
[1746474701740,5.54721632,1823.1,1822.8,4.582]
[1746474702038,5.48550368,1823.0,1822.8,4.582]
[1746474702641,5.54721632,1823.1,1822.8,4.582]
[1746474702939,11.03262684,1823.1,1822.8,4.582]
[1746474703142,5.54721632,1823.1,1822.8,4.582]
[1746474703441,11.03265426,1823.1,1822.8,4.582]
[1746474703741,5.54721632,1823.1,1822.8,4.582]
[1746474703904,0.06200498,1823.1,1822.8,10.06789311]
[1746474704241,5.54731368,1823.1,1822.8,4.582]
[1746474704536,11.03271173,1823.1,1822.9,0.12207897]
[1746474704739,11.03271173,1823.1,1822.6,24.39068575]
[1746474704740,6.28956352,1823.0,1822.6,18.9042]
[1746474704941,6.290378,1822.8,1822.7,0.12290362]
[1746474705110,5.48636637,1822.7,1822.6,18.143]
[1746474705312,5.48696844,1822.5,1822.4,4.582]
[1746474705616,5.54897342,1822.5,1822.4,4.582]
[1746474705833,6.37927342,1822.5,1822.4,4.582]
[1746474706439,6.68473523,1822.5,1822.4,4.582]
[1746474706632,7.90188385,1822.5,1822.4,4.582]
[1746474706830,5.48817298,1822.1,1822.0,3.70443083]
[1746474707030,5.48769709,1822.3,1822.1,4.583]
[1746474707731,6.3175838,1822.4,1822.1,4.583]
[1746474707732,0.30521144,1822.2,1822.1,4.583]
[1746474708244,0.30521144,1822.2,1822.1,10.07117298]
[1746474708416,5.48728903,1822.4,1822.1,10.07117298]
[1746474708612,10.53456068,1822.5,1822.1,10.07117298]
[1746474708809,10.53456068,1822.5,1822.2,0.7937]
[1746474709144,0.06200498,1822.4,1822.2,0.7937]
[1746474709347,0.36685588,1822.4,1822.2,0.7937]
[1746474709525,5.85413483,1822.4,1822.2,0.7937]
[1746474709721,0.36685588,1822.4,1822.1,10.95589816]
[1746474710028,0.06200498,1822.4,1822.1,10.95589816]
[1746474710747,0.06200498,1822.4,1822.2,5.48780309]
[1746474710919,0.06200498,1822.4,1822.1,10.95586963]
[1746474711447,5.54929983,1822.4,1822.1,5.4679]
[1746474711746,0.30464545,1822.3,1822.1,5.4679]
[1746474711949,0.30464545,1822.3,1822.1,10.95594998]
[1746474712448,1.03864982,1822.4,1822.1,10.95594998]
[1746474713153,5.48772419,1822.3,1822.1,4.6807]
[1746474713447,0.06200498,1822.3,1822.1,4.6807]
[1746474714220,0.97664484,1822.4,1822.1,10.16878337]
[1746474714421,0.06200498,1822.3,1822.1,4.6807]
[1746474714622,6.46407384,1822.4,1822.1,4.6807]
[1746474715150,0.06200498,1822.3,1822.1,4.6807]
[1746474715556,0.06200498,1822.4,1822.1,10.16872384]
[1746474715723,0.06200498,1822.4,1822.2,0.8319]
[1746474716648,0.06200498,1822.4,1822.2,6.31976173]
[1746474716854,0.06200498,1822.4,1822.2,0.8319]
[1746474718458,5.54937279,1822.4,1822.1,10.16867257]
[1746474718659,5.54937279,1822.4,1822.1,4.6807]
[1746474718660,6.48310639,1822.4,1822.1,4.6807]
[1746474718821,5.48776152,1822.3,1822.1,4.6807]
[1746474719021,0.06200498,1822.2,1822.1,4.6807]
[1746474719565,0.06200498,1822.2,1822.1,4.80872205]
[1746474719935,0.06200498,1822.3,1822.1,4.80872205]
[1746474720151,6.42120384,1822.4,1822.1,4.80872205]
[1746474720453,0.99573858,1822.4,1822.1,11.09469366]
[1746474721027,0.06200498,1822.4,1822.1,11.09463162]
[1746474721625,0.06200498,1822.4,1822.1,16.58261454]
[1746474721832,0.06200498,1822.4,1822.1,11.09460497]
[1746474722031,0.06200498,1822.4,1822.1,16.58264997]
[1746474722262,0.06200498,1822.4,1822.2,5.48784615]
[1746474722557,0.06200498,1822.4,1822.3,0.12724094]
[1746474722763,0.06200498,1822.4,1822.1,10.96657444]
[1746474723060,0.06200498,1822.4,1822.2,0.12760939]
[1746474725735,5.5492911,1822.4,1822.2,0.12760939]
[1746474725929,0.6778828,1822.4,1822.2,0.12760939]
[1746474726159,6.1651775,1822.4,1822.2,0.12760939]
[1746474728351,6.9493775,1822.4,1822.2,0.12760939]
[1746474729086,0.06200498,1822.4,1822.2,0.91400939]
[1746474729287,8.48714377,1822.5,1822.2,6.4017391]
[1746474729471,15.72637809,1822.7,1822.2,4.12292754]
[1746474729647,5.54867658,1822.6,1822.2,15.0434093]
[1746474729848,5.54867658,1822.6,1822.2,6.40168167]
[1746474730089,5.4866716,1822.6,1822.2,11.88935424]
[1746474730246,5.48757065,1822.3,1822.2,0.12760939]
[1746474730451,9.4909157,1822.3,1822.2,0.12760939]
[1746474730751,5.48937805,1821.7,1821.6,0.7864]
[1746474731075,5.48937805,1821.7,1821.6,4.70169978]
[1746474731271,0.7873,1821.8,1821.6,4.70169978]
[1746474731790,6.35981375,1821.9,1821.6,4.70169978]
[1746474732484,0.06200498,1821.9,1821.6,10.19127589]
[1746474732857,5.48857447,1822.0,1821.6,10.19123073]
[1746474733154,0.06200498,1821.9,1821.6,10.19123073]
[1746474733355,5.55079821,1821.9,1821.6,10.19123073]
[1746474733587,0.06200498,1821.9,1821.6,10.19123073]
[1746474734069,3.0,1822.0,1821.7,6.28554518]
[1746474734282,3.0,1822.0,1821.7,11.77469861]
[1746474734591,3.0,1822.0,1821.8,0.11996243]
[1746474734791,3.9367921,1822.0,1821.8,0.11996243]
[1746474735198,3.99879708,1822.0,1821.8,0.11996243]
[1746474735399,9.48729062,1822.0,1821.8,0.11996243]
[1746474735566,9.42528564,1822.0,1821.8,0.11996243]
[1746474736501,5.48877545,1821.9,1821.8,0.11996243]
[1746474736714,7.04218654,1821.9,1821.8,0.11996243]
[1746474737303,1.55341109,1821.9,1821.6,10.07067873]
[1746474737468,1.55341109,1821.9,1821.8,0.11996243]
[1746474737671,1.55341109,1821.9,1821.8,0.0977]
[1746474737870,1.49140611,1821.9,1821.8,0.21766243]
[1746474739492,8.5506418,1822.0,1821.8,0.21766243]
[1746474740175,14.0394042,1822.0,1821.8,0.21766243]